bitfinex/quotes_ETHUSD_20230118
["timestamp","ask_amount","ask_price","bid_price","bid_amount"]
[1674027650702,0.06901652,1581.5,1581.4,39.34027568]
[1674027651755,0.06901652,1581.5,1581.4,42.45689975]
[1674027658319,0.06901652,1581.5,1581.4,42.66508534]
[1674027659171,0.06901652,1581.5,1581.4,43.23119546]
[1674027662090,0.06901652,1581.5,1581.4,42.66508534]
[1674027662410,0.06901652,1581.5,1581.4,43.23109879]
[1674027663724,0.36382109,1581.5,1581.4,43.23109879]
[1674027663931,0.36382109,1581.5,1581.4,47.40970101]
[1674027664172,1.09e-06,1581.5,1581.4,50.40970101]
[1674027664374,1.09e-06,1581.5,1581.4,46.89310308]
[1674027665147,1.09e-06,1581.5,1581.4,46.23109879]
[1674027665298,1.09e-06,1581.5,1581.4,46.89310308]
[1674027665511,1.09e-06,1581.5,1581.4,46.23109879]
[1674027668375,1.09e-06,1581.5,1581.4,46.89310308]
[1674027668675,1.09e-06,1581.5,1581.4,46.91973702]
[1674027671603,1.09e-06,1581.5,1581.4,50.43566015]
[1674027671820,1.09e-06,1581.5,1581.4,46.91973702]
[1674027675775,0.00537509,1581.5,1581.4,46.91973702]
[1674027677081,0.00537509,1581.5,1581.4,47.14973702]
[1674027678918,0.00537509,1581.5,1581.4,46.91973702]
[1674027681762,0.00537509,1581.5,1581.4,47.91195717]
[1674027682712,0.00537509,1581.5,1581.4,51.65788018]
[1674027683021,0.00537509,1581.5,1581.4,47.47995288]
[1674027685328,0.00537509,1581.5,1581.4,47.47795288]
[1674027685543,0.00537509,1581.5,1581.4,47.47995288]
[1674027686112,0.00170024,1581.5,1581.4,47.47995288]
[1674027686802,0.2847894,1581.5,1581.4,47.47995288]
[1674027687522,9.4e-06,1581.5,1581.4,49.46634306]
[1674027687694,9.4e-06,1581.5,1581.4,47.81155954]
[1674027694685,9.4e-06,1581.5,1581.4,46.37955954]
[1674027697481,9.4e-06,1581.5,1581.4,47.57555954]
[1674027697691,9.4e-06,1581.5,1581.4,49.23034306]
[1674027699041,9.4e-06,1581.5,1581.4,52.74592691]
[1674027699834,9.4e-06,1581.5,1581.4,49.23034306]
[1674027700194,9.4e-06,1581.5,1581.4,52.74592518]
[1674027700454,9.4e-06,1581.5,1581.4,49.23034306]
[1674027700630,9.4e-06,1581.5,1581.4,52.74592518]
[1674027700853,9.4e-06,1581.5,1581.4,53.94792518]
[1674027701204,0.06686557,1581.8,1581.5,1.0]
[1674027701347,0.06686557,1581.8,1581.7,25.60089187]
[1674027701552,0.06686557,1581.8,1581.7,35.2846421]
[1674027701811,0.06686557,1581.8,1581.7,38.2846421]
[1674027702413,0.06686557,1581.8,1581.7,38.31000625]
[1674027702642,5.57e-06,1581.8,1581.7,38.31000625]
[1674027702854,0.07205773,1582.0,1581.8,1.0]
[1674027703067,0.07205773,1582.0,1581.9,30.26269176]
[1674027703299,0.07205773,1582.0,1581.9,31.12825174]
[1674027703822,0.07205773,1582.0,1581.9,30.56223829]
[1674027704035,0.07205773,1582.0,1581.9,30.56023829]
[1674027704203,0.07205773,1582.0,1581.9,33.89456762]
[1674027704553,0.07205773,1582.0,1581.9,34.46058107]
[1674027705130,0.07205773,1582.0,1581.9,33.79855338]
[1674027705764,0.07205773,1582.0,1581.9,33.23253993]
[1674027705991,0.07205773,1582.0,1581.9,33.02435434]
[1674027707170,0.07205773,1582.0,1581.9,33.23673721]
[1674027707591,0.07205773,1582.0,1581.9,33.23669012]
[1674027708267,0.07205773,1582.0,1581.9,32.03867027]
[1674027708445,0.07205773,1582.0,1581.9,32.03867574]
[1674027708631,0.07205773,1582.0,1581.9,32.03867609]
[1674027709058,0.07205773,1582.0,1581.9,32.03869418]
[1674027709320,0.07205773,1582.0,1581.9,28.46866407]
[1674027709472,1.27405773,1582.0,1581.9,28.46866407]
[1674027711066,1.27405773,1582.0,1581.9,19.03053]
[1674027711270,2.47605773,1582.0,1581.9,12.70902]
[1674027713169,1.27405773,1582.0,1581.9,12.70902]
[1674027723441,1.40836515,1582.0,1581.9,12.70902]
[1674027723630,2.61036515,1582.0,1581.9,0.066]
[1674027723797,2.61036515,1582.0,1581.8,6.38783]
[1674027723798,2.94589481,1582.0,1581.8,6.38783]
[1674027724010,1.202,1581.9,1581.8,6.38783]
[1674027725586,1.49658948,1581.9,1581.8,6.38783]
[1674027730768,2.69858948,1581.9,1581.8,6.38783]
[1674027732073,2.69858948,1581.9,1581.8,0.06435446]
[1674027732285,2.69858948,1581.9,1581.7,6.38641446]
[1674027732434,2.404,1581.8,1581.7,6.38641446]
[1674027732643,2.67385895,1581.8,1581.7,6.38641446]
[1674027732909,0.26985895,1581.8,1581.7,6.38641446]
[1674027733070,0.29458948,1581.9,1581.7,6.38641446]
[1674027733433,1.2033167,1582.0,1581.7,6.38641446]
[1674027733751,1.437,1581.8,1581.7,6.38641446]
[1674027735815,1.437,1581.8,1581.7,0.06435446]
[1674027736022,1.437,1581.8,1581.6,12.70953446]
[1674027736264,1.429,1581.7,1581.6,12.70953446]
[1674027737283,1.429,1581.7,1581.6,13.56624614]
[1674027737708,1.429,1581.7,1581.6,12.70953446]
[1674027738152,9.40683401,1581.9,1581.6,12.70953446]
[1674027740525,1.429,1581.7,1581.6,0.06435446]
[1674027740785,7.7514,1581.7,1581.5,0.002]
[1674027740999,10.42861,1581.6,1581.5,0.002]
[1674027741239,20.32602912,1581.6,1581.5,0.002]
[1674027741447,29.64669384,1581.6,1581.5,0.002]
[1674027741615,29.87669384,1581.6,1581.5,0.002]
[1674027742227,29.54595296,1581.6,1581.5,0.002]
[1674027743091,35.66257703,1581.6,1581.5,0.002]
[1674027743315,18.97343688,1581.4,1581.1,0.12094038]
[1674027743524,1.437,1581.2,1581.1,0.12094038]
[1674027753227,1.437,1581.2,1581.1,6.44565038]
[1674027753378,1.437,1581.2,1581.1,6.51000484]
[1674027754480,1.437,1581.2,1581.1,0.18529484]
[1674027754801,15.47571089,1581.4,1581.1,0.12094038]
[1674027755010,1.54757109,1581.3,1581.1,0.12094038]
[1674027756369,9.29459109,1581.3,1581.1,0.12094038]
[1674027756539,15.6807451,1581.3,1581.1,0.12094038]
[1674027758949,9.3567251,1581.3,1581.1,0.12094038]
[1674027759174,3.0327051,1581.3,1581.1,0.12094038]
[1674027759370,2.97057109,1581.3,1581.1,0.12094038]
[1674027760619,2.97057109,1581.3,1581.1,2.62094038]
[1674027760826,9.15020089,1581.4,1581.1,8.94565038]
[1674027761097,1.49980089,1581.4,1581.1,15.33471484]
[1674027761315,1.43766688,1581.4,1581.1,15.33471484]
[1674027761461,1.43766688,1581.4,1581.1,2.68529484]
[1674027761672,1.657,1581.3,1581.1,2.62094038]
[1674027761903,8.12487669,1581.3,1581.1,2.62094038]
[1674027762146,8.1870107,1581.3,1581.1,2.62094038]
[1674027762303,14.2811207,1581.3,1581.1,2.62094038]
[1674027762517,1.6329007,1581.3,1581.1,2.62094038]
[1674027762847,1.57076669,1581.3,1581.1,2.62094038]
[1674027763056,7.89467669,1581.3,1581.1,2.62094038]
[1674027763264,7.9568107,1581.3,1581.1,2.62094038]
[1674027763474,1.6329007,1581.3,1581.1,2.62094038]
[1674027763725,1.57076669,1581.3,1581.1,2.62094038]
[1674027764562,7.89469669,1581.3,1581.1,2.62094038]
[1674027764786,0.78946967,1581.2,1581.1,2.62094038]
[1674027764935,7.9568307,1581.3,1581.1,2.62094038]
[1674027765349,7.9568307,1581.3,1581.1,2.61824744]
[1674027768086,6.5298307,1581.3,1581.1,2.61824744]
[1674027770140,0.2059007,1581.3,1581.1,2.61824744]
[1674027770286,0.06480089,1581.4,1581.1,15.26753744]
[1674027770500,0.00266688,1581.4,1581.1,15.3318919]
[1674027770763,6.32622688,1581.4,1581.1,2.6826019]
[1674027771074,0.63262269,1581.3,1581.1,2.61824744]
[1674027776431,0.06480089,1581.4,1581.1,21.59237744]
[1674027776648,0.00266688,1581.4,1581.1,21.6567319]
[1674027777325,0.00266688,1581.4,1581.1,15.3320219]
[1674027778102,14.27456401,1581.5,1581.4,0.00043006]
[1674027778284,18.58158181,1581.5,1581.4,0.00043006]
[1674027779956,20.15608308,1581.5,1581.4,0.00043006]
[1674027780171,21.25247626,1581.5,1581.4,0.00043006]
[1674027780630,22.2434333,1581.5,1581.4,0.00043006]
[1674027781468,21.25247626,1581.5,1581.4,0.00043006]
[1674027783244,22.2434333,1581.5,1581.1,21.6565019]
[1674027783463,20.13156701,1581.5,1581.1,21.6565019]
[1674027783679,19.03517383,1581.5,1581.1,21.6565019]
[1674027783917,15.92615603,1581.5,1581.1,23.9004489]
[1674027784066,15.92615603,1581.5,1581.1,23.8984489]
[1674027784285,15.92615603,1581.5,1581.1,23.9004489]
[1674027784600,1.57455891,1581.4,1581.1,23.9004489]
[1674027786024,1.57455891,1581.4,1581.1,15.3317919]
[1674027786599,1.57455891,1581.4,1581.1,2.6826019]
[1674027786600,16.41153595,1581.4,1581.1,2.6826019]
[1674027786968,1.0,1581.3,1581.1,2.61824744]
[1674027787281,6.32431,1581.2,1581.1,2.61824744]
[1674027787451,2.78050321,1581.2,1581.1,2.61824744]
[1674027787659,2.7183692,1581.2,1581.1,2.61824744]
[1674027787873,3.37900418,1581.2,1581.1,2.61824744]
[1674027788442,1.6213692,1581.2,1581.1,2.61824744]
[1674027789803,7.04682899,1581.3,1581.1,2.61824744]
[1674027794832,0.06213401,1581.3,1581.1,15.26754744]
[1674027795021,0.66063498,1581.4,1581.1,15.3319019]
[1674027795234,1.57466652,1581.4,1581.1,15.3319019]
[1674027795425,9.60302603,1581.5,1581.1,15.3319019]
[1674027797317,9.60302603,1581.5,1581.1,17.3308627]
[1674027797525,9.60302603,1581.5,1581.1,23.6555727]
[1674027799439,8.61206899,1581.5,1581.1,23.6555727]
[1674027800300,14.93518899,1581.5,1581.1,23.6555727]
[1674027801204,14.93518899,1581.5,1581.1,21.6566119]
[1674027803338,15.92614603,1581.5,1581.1,21.6566119]
[1674027803538,15.92614603,1581.5,1581.1,15.3319019]
[1674027803974,14.93518899,1581.5,1581.1,15.3319019]
[1674027804479,15.92614603,1581.5,1581.1,15.3319019]
[1674027804671,14.93518899,1581.5,1581.1,15.3319019]
[1674027804888,19.14568502,1581.5,1581.1,15.3319019]
[1674027805347,12.82256502,1581.5,1581.1,15.3319019]
[1674027805604,11.83160798,1581.5,1581.1,15.3319019]
[1674027807969,12.82256502,1581.5,1581.1,15.3319019]
[1674027808306,7.95143401,1581.5,1581.2,0.18199885]
[1674027808515,7.95143401,1581.5,1581.3,6.32391]
[1674027808864,0.06213401,1581.5,1581.3,6.38826446]
[1674027809020,0.66063498,1581.6,1581.3,6.38826446]
[1674027809228,1.57477965,1581.6,1581.3,6.38826446]
[1674027812508,1.57477965,1581.6,1581.3,19.03608446]
[1674027812856,1.57477965,1581.6,1581.3,20.99443941]
[1674027813976,0.66063498,1581.6,1581.3,21.01992716]
[1674027814332,10.73912603,1581.7,1581.3,21.01992716]
[1674027815167,1.57465906,1581.6,1581.3,21.01992716]
[1674027815484,0.66063498,1581.6,1581.3,21.01992716]
[1674027815694,1.57467607,1581.6,1581.3,21.01992716]
[1674027815848,10.73912603,1581.7,1581.3,19.06157221]
[1674027816262,1.57457445,1581.6,1581.3,19.06157221]
[1674027817350,1.57457445,1581.6,1581.3,12.73766221]
[1674027817563,1.57457445,1581.6,1581.3,6.41375221]
[1674027817776,7.89729445,1581.6,1581.3,0.08984221]
[1674027817948,0.78972945,1581.5,1581.2,12.71253446]
[1674027818318,8.03644603,1581.6,1581.2,12.71253446]
[1674027818685,7.04548899,1581.6,1581.2,12.71253446]
[1674027818898,8.03644603,1581.6,1581.2,12.71253446]
[1674027819146,15.55516603,1581.6,1581.2,6.38840446]
[1674027819481,1.57431816,1581.5,1581.2,6.38840446]
[1674027819649,9.54442308,1581.5,1581.2,0.06435446]
[1674027819841,9.54442308,1581.5,1581.1,28.0092219]
[1674027819842,9.89087391,1581.5,1581.1,28.0092219]
[1674027822296,9.89087391,1581.5,1581.1,21.6848019]
[1674027822521,9.89087391,1581.5,1581.1,2.67897191]
[1674027822522,2.77726301,1581.4,1581.1,2.67897191]
[1674027822843,2.77726301,1581.4,1581.1,2.61461745]
[1674027822844,6.32391,1581.3,1581.1,2.61461745]
[1674027822993,7.29616131,1581.3,1581.1,2.61461745]
[1674027827459,14.28070629,1581.3,1581.1,2.61461745]
[1674027827672,1.195,1581.2,1581.1,2.61461745]
[1674027829507,6.87675339,1581.2,1581.1,2.61461745]
[1674027829777,10.89812992,1581.2,1581.1,2.61461745]
[1674027829949,30.3603549,1581.2,1581.1,2.61461745]
[1674027830280,33.41791916,1581.2,1581.1,2.61461745]
[1674027830661,32.0930646,1581.2,1581.1,2.61461745]
[1674027830876,33.41792159,1581.2,1581.1,2.61461745]
[1674027831134,31.76700779,1581.2,1581.1,2.61461745]
[1674027831767,32.75976899,1581.2,1581.1,2.61461745]
[1674027832348,31.55676899,1581.2,1581.1,2.61461745]
[1674027832721,1.0,1581.1,1581.0,0.12094038]
[1674027832894,12.5980821,1581.1,1581.0,0.12094038]
[1674027833081,32.73031408,1581.1,1581.0,0.12094038]
[1674027833292,32.39850182,1581.1,1581.0,0.12094038]
[1674027834031,31.06790634,1581.1,1581.0,0.12094038]
[1674027835096,29.05840107,1581.1,1581.0,0.12094038]
[1674027835304,30.97453034,1581.1,1581.0,0.12094038]
[1674027837132,29.91914895,1581.1,1581.0,0.12094038]
[1674027837509,30.00009541,1581.1,1581.0,0.12094038]
[1674027837752,34.6919534,1581.1,1581.0,0.12094038]
[1674027838008,34.69195407,1581.1,1581.0,0.12094038]
[1674027838192,33.63683714,1581.1,1581.0,0.12094038]
[1674027838814,34.69204858,1581.1,1581.0,0.12094038]
[1674027839878,33.17009417,1581.1,1581.0,0.12094038]
[1674027840030,34.69073042,1581.1,1581.0,0.12094038]
[1674027840697,17.76305203,1581.1,1581.0,0.12094038]
[1674027841033,16.0480471,1581.1,1581.0,0.12094038]
[1674027841184,17.36833543,1581.1,1581.0,0.12094038]
[1674027841395,36.34246543,1581.1,1581.0,0.12094038]
[1674027841658,37.39711503,1581.1,1581.0,0.12094038]
[1674027842490,37.39551215,1581.1,1581.0,0.12094038]
[1674027842669,36.40531302,1581.1,1581.0,0.12094038]
[1674027843442,36.07457957,1581.1,1581.0,0.12094038]
[1674027843658,35.43783784,1581.1,1581.0,0.12094038]
[1674027843824,36.07457957,1581.1,1581.0,0.12094038]
[1674027844041,36.7343008,1581.1,1581.0,0.12094038]
[1674027845215,36.07457957,1581.1,1581.0,0.12094038]
[1674027845566,23.27323488,1581.0,1580.9,0.12094038]
[1674027845720,40.59551672,1581.0,1580.9,0.12094038]
[1674027845919,42.28541133,1581.0,1580.9,0.12094038]
[1674027846349,40.37197753,1581.0,1580.9,0.12094038]
[1674027846555,39.71263469,1581.0,1580.9,0.12094038]
[1674027846825,41.23101904,1581.0,1580.9,0.12094038]
[1674027847173,39.71263469,1581.0,1580.9,0.12094038]
[1674027849187,1.0,1580.9,1580.8,0.07988241]
[1674027849378,28.66927137,1580.9,1580.8,0.07988241]
[1674027849692,28.73140538,1580.9,1580.8,0.07988241]
[1674027849912,29.36814711,1580.9,1580.8,0.07988241]
[1674027850681,34.60014711,1580.9,1580.8,0.07988241]
[1674027850869,1.19110627,1580.7,1580.6,0.16419626]
[1674027851084,35.71597034,1580.7,1580.6,0.16419626]
[1674027851286,1.0,1580.6,1580.5,0.15146897]
[1674027851488,24.76575407,1580.6,1580.5,0.15146897]
[1674027851806,3.06213401,1580.6,1580.5,0.15146897]
[1674027852016,6.48255028,1580.7,1580.5,0.15146897]
[1674027852668,12.80912028,1580.7,1580.5,0.15146897]
[1674027852903,16.41742674,1580.7,1580.5,0.15146897]
[1674027854964,25.86062081,1580.7,1580.5,0.15146897]
[1674027855388,3.34662407,1580.6,1580.5,0.15146897]
[1674027855596,22.32675407,1580.6,1580.5,0.15146897]
[1674027855850,22.38888808,1580.6,1580.5,0.15146897]
[1674027856023,9.73546808,1580.6,1580.5,0.15146897]
[1674027857491,11.60737296,1580.6,1580.5,0.15146897]
[1674027858075,0.06213401,1580.6,1580.5,0.15146897]
[1674027858221,12.80924028,1580.7,1580.5,0.15146897]
[1674027858431,15.92586435,1580.7,1580.5,0.15146897]
[1674027859846,12.80924028,1580.7,1580.5,0.15146897]
[1674027860589,19.13582028,1580.7,1580.5,0.15146897]
[1674027860795,1.91358203,1580.6,1580.5,0.15146897]
[1674027861013,8.24029203,1580.6,1580.5,0.15146897]
[1674027861179,8.30242604,1580.6,1580.5,0.15146897]
[1674027861378,14.62913604,1580.6,1580.5,0.15146897]
[1674027861585,24.07247011,1580.6,1580.5,0.15146897]
[1674027861799,24.30247011,1580.6,1580.5,0.15146897]
[1674027862277,8.30242604,1580.6,1580.5,0.15146897]
[1674027863909,14.62913604,1580.6,1580.5,0.15146897]
[1674027864173,24.07247011,1580.6,1580.5,0.15146897]
[1674027864476,24.30247011,1580.6,1580.5,0.15146897]
[1674027866662,8.53242604,1580.6,1580.5,0.15146897]
[1674027866882,8.30242604,1580.6,1580.5,0.15146897]
[1674027867466,14.62913604,1580.6,1580.5,0.15146897]
[1674027867952,20.95584604,1580.6,1580.5,0.15146897]
[1674027868317,24.07247011,1580.6,1580.5,0.15146897]
[1674027868526,24.30247011,1580.6,1580.5,0.15146897]
[1674027869209,25.81701605,1580.6,1580.5,0.15146897]
[1674027870222,17.97576011,1580.6,1580.5,0.15146897]
[1674027870432,19.49027806,1580.6,1580.5,0.15146897]
[1674027871723,17.97576011,1580.6,1580.5,0.15146897]
[1674027872126,24.30247011,1580.6,1580.5,0.15146897]
[1674027872759,17.97576011,1580.6,1580.5,0.15146897]
[1674027872970,14.85913604,1580.6,1580.5,0.15146897]
[1674027873217,14.62913604,1580.6,1580.5,0.15146897]
[1674027874134,14.62913604,1580.6,1580.5,0.14882005]
[1674027875994,8.30242604,1580.6,1580.5,0.14882005]
[1674027877192,0.06213401,1580.6,1580.5,1.58082005]
[1674027877351,0.09410627,1580.7,1580.5,9.34693005]
[1674027877562,0.09410627,1580.7,1580.6,1.439]
[1674027879468,0.09410627,1580.7,1580.6,14.09242]
[1674027879693,0.09410627,1580.7,1580.6,23.17942591]
[1674027883166,0.09410627,1580.7,1580.6,1.50335446]
[1674027883374,0.09410627,1580.7,1580.6,1.439]
[1674027885177,0.09410627,1580.7,1580.6,7.76571]
[1674027885403,0.09410627,1580.7,1580.6,7.83006446]
[1674027886532,0.09410627,1580.7,1580.6,14.15677446]
[1674027886951,0.09410627,1580.7,1580.6,22.54671491]
[1674027887762,0.09410627,1580.7,1580.6,16.22000491]
[1674027889334,0.09410627,1580.7,1580.6,1.50335446]
[1674027889544,6.38827401,1580.8,1580.6,1.439]
[1674027890814,3.11662407,1580.7,1580.5,0.14882005]
[1674027891288,6.32671,1580.6,1580.5,0.14882005]
[1674027891604,6.38884401,1580.6,1580.5,0.14882005]
[1674027891916,8.60469382,1580.6,1580.5,0.14882005]
[1674027892138,8.6023934,1580.6,1580.5,0.14882005]
[1674027892341,14.9291034,1580.6,1580.5,0.14882005]
[1674027893672,21.4858134,1580.6,1580.5,0.14882005]
[1674027896619,24.60243747,1580.6,1580.5,0.14882005]
[1674027897050,26.12394568,1580.6,1580.5,0.14882005]
[1674027897270,27.18077868,1580.6,1580.5,0.14882005]
[1674027897500,26.12394568,1580.6,1580.5,0.14882005]
[1674027897806,24.60243747,1580.6,1580.5,0.14882005]
[1674027898596,18.27572747,1580.6,1580.5,0.14882005]
[1674027899434,15.1591034,1580.6,1580.5,0.14882005]
[1674027902327,2.27798382,1580.6,1580.5,0.14882005]
[1674027902479,12.65291,1580.7,1580.5,0.14882005]
[1674027902480,19.04167401,1580.7,1580.5,0.14882005]
[1674027902685,6.32671,1580.6,1580.5,0.14882005]
[1674027902949,6.38884401,1580.6,1580.5,0.14882005]
[1674027903137,12.71555401,1580.6,1580.5,0.14882005]
[1674027904327,6.38884401,1580.6,1580.5,0.14882005]
[1674027905337,0.06213401,1580.6,1580.5,0.14882005]
[1674027905550,6.38852401,1580.7,1580.5,0.14882005]
[1674027906110,9.53070612,1580.7,1580.5,0.14882005]
[1674027909011,6.38852401,1580.7,1580.5,0.14882005]
[1674027913025,1.0,1580.6,1580.5,0.14882005]
[1674027913312,6.32671,1580.6,1580.5,0.14882005]
[1674027913516,12.71555401,1580.6,1580.5,0.14882005]
[1674027914905,6.38884401,1580.6,1580.5,0.14882005]
[1674027915661,23.43041148,1580.6,1580.5,0.14882005]
[1674027915882,1.33365741,1580.6,1580.5,0.14582503]
[1674027916073,12.71510401,1580.7,1580.5,0.14582503]
[1674027916671,0.06213401,1580.7,1580.5,0.14582503]
[1674027916876,0.06213401,1580.8,1580.5,14.23500503]
[1674027917085,7.04657549,1580.9,1580.5,14.29935949]
[1674027917678,24.86051623,1580.9,1580.5,1.64517949]
[1674027917857,4.00854068,1580.8,1580.5,0.14582503]
[1674027918192,20.73136641,1580.7,1580.5,0.14582503]
[1674027918350,23.04661956,1580.7,1580.5,0.14582503]
[1674027918563,25.09283367,1580.7,1580.5,0.14582503]
[1674027918780,1.52240238,1580.6,1580.5,0.14582503]
[1674027918989,23.09816284,1580.6,1580.5,0.14582503]
[1674027919199,23.16029685,1580.6,1580.5,0.14582503]
[1674027919457,22.29682595,1580.6,1580.5,0.14582503]
[1674027919671,21.63789447,1580.6,1580.5,0.14582503]
[1674027921335,22.29682595,1580.6,1580.5,0.14582503]
[1674027921509,24.75451854,1580.6,1580.5,0.14582503]
[1674027921880,26.50695756,1580.6,1580.5,0.14582503]
[1674027922278,27.56478904,1580.6,1580.5,0.14582503]
[1674027922509,29.50695756,1580.6,1580.5,0.14582503]
[1674027924189,27.98451854,1580.6,1580.5,0.14582503]
[1674027925134,29.5068483,1580.6,1580.5,0.14582503]
[1674027926246,30.56489521,1580.6,1580.5,0.14582503]
[1674027926922,31.55329481,1580.6,1580.5,0.14582503]
[1674027927378,30.89436333,1580.6,1580.5,0.14582503]
[1674027927714,33.29299379,1580.6,1580.5,0.14582503]
[1674027927939,32.65625206,1580.6,1580.5,0.14582503]
[1674027928523,44.68403843,1580.6,1580.5,0.14582503]
[1674027928870,19.02467301,1580.4,1580.3,0.15750928]
[1674027929023,28.79890702,1580.4,1580.3,0.15750928]
[1674027929503,30.84957048,1580.4,1580.3,0.15750928]
[1674027929684,29.85695393,1580.4,1580.3,0.15750928]
[1674027931182,29.85686659,1580.4,1580.3,0.15750928]
[1674027931337,30.84948314,1580.4,1580.3,0.15750928]
[1674027931548,29.85686659,1580.4,1580.3,0.15750928]
[1674027932409,27.27376438,1580.4,1580.3,0.15750928]
[1674027932817,28.79421485,1580.4,1580.3,0.15750928]
[1674027933027,29.84838406,1580.4,1580.3,0.15750928]
[1674027933630,28.79417221,1580.4,1580.3,0.15750928]
[1674027933807,27.27376438,1580.4,1580.3,0.15750928]
[1674027934340,9.36965301,1580.4,1580.3,0.15750928]
[1674027934492,6.36965301,1580.4,1580.3,0.05750928]
[1674027935486,15.81378708,1580.4,1580.3,0.05750928]
[1674027935699,16.04378708,1580.4,1580.3,0.05750928]
[1674027938199,16.04378708,1580.4,1580.2,0.1972075]
[1674027938200,22.37129708,1580.4,1580.2,0.15471678]
[1674027938390,24.67459249,1580.4,1580.2,0.15471678]
[1674027938600,3.11662407,1580.3,1580.2,0.15471678]
[1674027938848,16.00244407,1580.3,1580.2,0.15471678]
[1674027943174,6.32791,1580.3,1580.2,0.15471678]
[1674027945023,6.36965301,1580.4,1580.2,0.15471678]
[1674027945268,0.04214301,1580.4,1580.2,0.15471678]
[1674027945442,0.04214301,1580.4,1580.2,6.48297678]
[1674027945649,0.04214301,1580.4,1580.2,8.39696146]
[1674027946761,0.04214301,1580.4,1580.2,14.72527146]
[1674027949149,0.04214301,1580.4,1580.2,8.39696146]
[1674027950163,0.04214301,1580.4,1580.2,2.06870146]
[1674027952006,0.10427702,1580.4,1580.2,2.004347]
[1674027952323,0.04214301,1580.4,1580.2,2.004347]
[1674027952935,0.04214301,1580.4,1580.3,1.2004347]
[1674027953123,0.04214301,1580.4,1580.3,14.2922547]
[1674027953341,0.04214301,1580.4,1580.3,20.68451916]
[1674027953536,0.04214301,1580.4,1580.3,20.91992872]
[1674027953748,0.04214301,1580.4,1580.3,20.68451916]
[1674027954284,0.04214301,1580.4,1580.3,8.02869916]
[1674027956338,0.04214301,1580.4,1580.3,14.35660916]
[1674027956554,0.04214301,1580.4,1580.3,14.5920059]
[1674027957712,0.04214301,1580.4,1580.3,14.59203838]
[1674027957860,0.04214301,1580.4,1580.3,14.35660916]
[1674027960914,0.04214301,1580.4,1580.3,20.68451916]
[1674027961474,0.04214301,1580.4,1580.3,20.91991404]
[1674027961697,0.03892393,1580.4,1580.3,20.9199106]
[1674027961857,0.03892393,1580.4,1580.3,20.68451916]
[1674027963066,0.03892393,1580.4,1580.3,21.65451916]
[1674027963381,0.03892393,1580.4,1580.3,20.45051916]
[1674027966384,0.03892393,1580.4,1580.3,21.27317638]
[1674027966584,0.03892393,1580.4,1580.3,22.47417638]
[1674027967466,0.03892393,1580.4,1580.3,22.47217638]
[1674027967681,0.03892393,1580.4,1580.3,22.47417638]
[1674027968277,0.03892393,1580.4,1580.3,23.13620407]
[1674027968484,0.03892393,1580.4,1580.3,22.47417638]
[1674027968695,0.03892393,1580.4,1580.3,8.99569916]
[1674027968946,0.03892393,1580.4,1580.3,9.23369064]
[1674027969158,6.37744794,1580.7,1580.3,8.99569916]
[1674027969309,14.75543473,1580.7,1580.4,1.204]
[1674027969522,8.42888473,1580.7,1580.4,1.204]
[1674027969782,2.1135708,1580.7,1580.4,1.204]
[1674027969994,2.05143679,1580.7,1580.4,7.53148]
[1674027970166,14.86071103,1580.8,1580.4,7.59583446]
[1674027971100,21.18681103,1580.8,1580.4,1.26835446]
[1674027971359,21.18681103,1580.8,1580.4,1.204]
[1674027971360,27.51291103,1580.8,1580.4,1.204]
[1674027971516,28.56378466,1580.8,1580.4,1.204]
[1674027971769,9.18278847,1580.7,1580.4,1.204]
[1674027971992,9.24492248,1580.7,1580.4,1.204]
[1674027973368,0.06213401,1580.7,1580.4,7.53148]
[1674027973552,14.86069103,1580.8,1580.4,13.92334446]
[1674027973883,21.18680103,1580.8,1580.4,1.26835446]
[1674027974107,21.18680103,1580.8,1580.4,1.204]
[1674027974932,27.51291103,1580.8,1580.4,1.204]
[1674027975248,32.12958683,1580.8,1580.4,1.204]
[1674027975441,33.12220338,1580.8,1580.4,1.204]
[1674027975871,36.23882745,1580.8,1580.4,1.204]
[1674027976050,35.18762128,1580.8,1580.4,1.204]
[1674027977250,28.86151128,1580.8,1580.4,1.204]
[1674027977463,9.53584636,1580.8,1580.4,16.01247845]
[1674027977627,7.82293401,1580.8,1580.4,22.40434291]
[1674027978871,7.82293401,1580.8,1580.4,21.20034291]
[1674027979217,7.82293401,1580.8,1580.4,21.79068734]
[1674027979635,0.06213401,1580.8,1580.5,1.0]
[1674027979850,16.92754758,1581.0,1580.6,6.42656]
[1674027980156,16.92754758,1581.0,1580.6,6.49091446]
[1674027980157,17.97898595,1581.0,1580.6,6.49091446]
[1674027980475,16.9863694,1581.0,1580.6,6.49091446]
[1674027981458,16.9863694,1581.0,1580.6,12.81762446]
[1674027981676,9.39830758,1581.0,1580.7,1.0]
[1674027981820,8.40569103,1581.0,1580.8,0.1]
[1674027982195,7.74403401,1581.0,1580.8,0.1]
[1674027982552,7.74403401,1581.0,1580.7,12.71650446]
[1674027982977,8.40569103,1581.0,1580.7,12.71650446]
[1674027983246,8.40569103,1581.0,1580.7,13.91050446]
[1674027985743,0.06213401,1581.0,1580.8,4.31362407]
[1674027985967,0.06341839,1581.2,1580.9,24.93251648]
[1674027986153,0.06341839,1581.2,1580.9,26.096664]
[1674027986435,0.06341839,1581.2,1580.9,26.70851063]
[1674027986705,0.06341839,1581.2,1581.0,1.0]
[1674027986922,0.06341839,1581.2,1581.1,20.17813]
[1674027987132,0.06341839,1581.2,1581.1,23.68329746]
[1674027988964,0.06341839,1581.2,1581.1,31.34649746]
[1674027989443,0.06341839,1581.2,1581.1,31.36581452]
[1674027993287,0.06341839,1581.2,1581.1,30.15981452]
[1674027993502,0.06341839,1581.2,1581.1,30.16181452]
[1674027995420,0.06341839,1581.2,1581.1,16.30939452]
[1674027995748,0.06341839,1581.2,1581.1,14.07158152]
[1674027997533,0.06341839,1581.2,1581.1,14.06932012]
[1674028002262,0.06341839,1581.2,1581.1,7.74687152]
[1674028002506,0.06341839,1581.2,1581.1,7.72755446]
[1674028002697,0.06341839,1581.2,1581.1,0.06435446]
[1674028002698,1.16041839,1581.2,1581.1,0.06435446]
[1674028002892,1.90886823,1581.2,1580.9,7.59386446]
[1674028003314,1.90886823,1581.2,1580.9,6.38986446]
[1674028003627,0.81186823,1581.2,1580.9,6.38986446]
[1674028003837,0.81186823,1581.2,1580.9,12.71537446]
[1674028004468,0.06341839,1581.2,1580.9,12.71537446]
[1674028004702,0.06341839,1581.2,1580.9,20.23488446]
[1674028008092,0.06341839,1581.2,1581.0,1.192]
[1674028008397,0.06341839,1581.2,1581.1,18.97413]
[1674028008564,0.06341839,1581.2,1581.1,19.03848446]
[1674028008904,0.06341839,1581.2,1581.1,21.16356162]
[1674028014294,0.06341839,1581.2,1581.1,24.28018569]
[1674028015658,0.06341839,1581.2,1581.1,21.16356162]
[1674028015873,0.06341839,1581.2,1581.1,19.03848446]
[1674028017321,0.06341839,1581.2,1581.1,27.72764332]
[1674028017625,0.06341839,1581.2,1581.1,27.22885026]